Cogmind - Beta 15 *** ADVENTURER MODE // 2025.09.19 @ 07:56:27 Player: Crusang Result: Destroyed by G-47 Trooper with Particle Gun Performance ------------- Evolutions (2) 1000 Regions Visited (3) 600 Robots Destroyed (77) 385 Value Destroyed (1760) 1760 Prototype IDs (1) 20 Alien Tech Used (0) 0 Bonus (85) 85 TOTAL SCORE: 3850 Bonus ------- High Alert Combat Kills 85 Cogmind --------- Core Integrity 0/550 Matter 290/300 Energy 99/100 System Corruption 7% Temperature Cool (9) Movement Walking (260) Ox2 Location -8/Materials Parts ------- > --- POWER (2) -------- (None) > --- PROPULSION (3) --- Carbon-fiber Leg > --- UTILITY (3) ------ High-capacity Storage Unit Improved Signal Interpreter > --- WEAPON (3) ------- Datajack Great Maul > --- INVENTORY (20) --- High-powered Tractor Beam Datajack Peak State ------------ > --- POWER ------------ Light Ion Engine Light Deuterium Engine > --- PROPULSION ------- Improved Aluminum Leg Improved Aluminum Leg Titanium Leg > --- UTILITY ---------- Improved Signal Interpreter Terrain Scan Processor > --- WEAPON ----------- Advanced Beam Rifle Advanced Beam Rifle Rocket Launcher > --- INVENTORY -------- VTOL Module High-capacity Storage Unit Datajack Datajack Welding Torch [Rating: 26] Favorites ----------- Power Light Ion Engine Engine Light Ion Engine Propulsion Flight Unit Treads Light Treads Leg Aluminum Leg Flight Unit Flight Unit Utility Terrain Scan Processor Device Tractor Beam Storage High-capacity Storage Unit Processor Terrain Scan Processor Protection Backup Plating I Weapon Medium Laser Energy Gun Medium Laser Energy Cannon Particle Cannon Ballistic Gun Light Assault Rifle Ballistic Cannon Light Cannon Launcher Rocket Launcher Impact Weapon Great Maul Special Melee Weapon Datajack Build | -11 -10 -9 -8 ------- Run | Yrd Mat Mat Mat Slots Evolved 4 | . . 2 2 Power 1 | . . 1 . Propulsion 1 | . . 1 . Utility 1 | . . . 1 Weapon 1 | . . . 1 Parts Attached 65 | 7 16 25 17 Power 9 | 1 3 3 2 Engine 9 | 1 3 3 2 Core . | . . . . Reactor . | . . . . Propulsion 19 | 2 4 10 3 Treads 2 | . . 2 . Leg 10 | 2 . 6 2 Wheel . | . . . . Hover . | . . . . Flight 7 | . 4 2 1 Utility 15 | . 5 6 4 Device 5 | . 1 2 2 Storage 4 | . 2 2 . Processor 3 | . . 2 1 Hackware . | . . . . Protection 3 | . 2 . 1 Artifact . | . . . . Weapon 22 | 4 4 6 8 Energy Gun 10 | 3 . 4 3 Energy Cannon 1 | . . 1 . Ballistic Gun 4 | 1 2 . 1 Ballistic Cannon 1 | . 1 . . Launcher 4 | . 1 1 2 Special Weapon . | . . . . Impact Weapon 1 | . . . 1 Slashing Weapon . | . . . . Piercing Weapon . | . . . . Special Melee Weapon 1 | . . . 1 Unidentified Prototypes 1 | . . . 1 Corrupted Parts 1 | . . . 1 System Corruption 6 | . . . 6 Parts Lost 15 | . 1 4 10 Power 3 | . . 1 2 Propulsion 6 | . 1 1 4 Utility 4 | . . 2 2 Weapon 2 | . . . 2 Highest Loss Streak 4 | . 1 4 3 To Critical Strikes . | . . . . Average Backups 3 | 3 3 2 3 Power . | . . . . Propulsion . | 2 1 . . Utility . | . . . 1 Weapon . | 1 1 . . Tool/Special . | . . . . Unused Backups 12 | 1 5 4 2 Power . | . . . . Propulsion 5 | 1 3 1 . Utility 1 | . 1 . . Weapon 3 | . 1 2 . Tool/Special 3 | . . 1 2 Average Slot Usage (%) 75 | . 71 87 61 Engine 14 | . 12 18 8 Treads 2 | . . 4 . Leg 12 | . 13 10 12 Flight 10 | . 13 13 3 Device 5 | . 3 8 4 Processor 7 | . . 5 15 Protection 2 | . . 3 1 Energy Gun 8 | . 11 8 6 Energy Cannon 1 | . . 3 . Ballistic Gun 2 | . 4 1 3 Ballistic Cannon 2 | . 3 3 . Launcher 4 | . 7 4 1 Peak Build Rating 26 | 5 7 16 26 Average Rating 10 | 3 5 10 16 On Entrance 6 | . 5 6 14 Naked Turns . | . . . . Heaviest Build 47 | 7 20 15 47 Greatest Support 43 | 20 20 40 43 Greatest Overweight (x) 6 | . 2 1 6 Average Overweight (x) . | . . . 1 Largest Inventory Capacity 20 | 5 10 20 20 Average Capacity 5 | 5 5 5 7 Most Carried 5 | 5 5 5 5 Average Carried 3 | 3 3 2 3 Final Capacity 20 | 5 5 5 20 Final Carried 5 | 5 2 5 2 Class Distribution -------------------- 69% | Mutant 26% | Scavenger-Mutant 4% | Gunner Dominant Class ---------------- Mutant | -10/Materials Scavenger-Mutant | -9/Materials Mutant | -8/Materials Resources | -11 -10 -9 -8 ----------- Run | Yrd Mat Mat Mat Matter Collected 1065 | 280 192 388 205 Remotely 225 | . . 225 . Salvage Created 1922 | 45 285 1014 578 Parts 141 | 3 37 82 19 Haulers Intercepted 1 | . . . 1 Recyclers Shooed . | . . . . Parts Field Recycled . | . . . . Retrieved Matter . | . . . . Parts Self-Destructed . | . . . . Prevented . | . . . . Kills | -11 -10 -9 -8 ------- Run | Yrd Mat Mat Mat Combat Hostiles Destroyed 55 | 1 15 26 13 Melee 2 | . . . 2 Guns 24 | 1 7 11 5 Cannons 9 | . . 9 . AOE 19 | . 8 6 5 Classes Destroyed 11 | 1 3 5 2 Worker 6 | . . 5 1 Builder 4 | . . 4 . Tunneler 2 | . 1 1 . Hauler 1 | . . . 1 Recycler 1 | . . 1 . Watcher 8 | . 3 3 2 Swarmer 26 | . 9 13 4 Grunt 18 | 1 6 7 4 Duelist 2 | . . 1 1 Sentry 8 | . . 5 3 Hunter 1 | . . . 1 Best Kill Streak 14 | 1 7 14 8 Combat Bots Only 6 | 1 6 4 6 Max Kills in Single Turn 7 | 1 2 7 5 Gunslinging . | . . . . Exploded 3 | . 2 3 3 Melee 1 | . . . 1 Uniques/NPCs Destroyed . | . . . . Combat | -11 -10 -9 -8 -------- Run | Yrd Mat Mat Mat Hostile Shots Fired 408 | 4 49 145 210 Missed 129 | 2 20 49 58 Hits 279 | 2 29 96 152 Melee 6 | . . 5 1 Projectile 273 | 2 29 91 151 Critical Strikes 5 | . . . 5 Damage Taken 2791 | 17 201 919 1654 Core 753 | 9 46 145 553 Absorbed by Shields 80 | . . 80 . Ignored by Resistances 842 | 5 62 292 483 Regen/Repaired (Parts) 3 | . . 3 . Core Remaining (%) 79 | 96 78 63 . Volleys Fired 113 | 3 22 66 22 Largest 3 | 2 2 2 3 Hottest 155 | 100 80 113 155 Shots Fired 184 | 6 36 109 33 Gun 127 | 6 22 70 29 Cannon 42 | . 5 37 . Launcher 15 | . 9 2 4 Special . | . . . . Kinetic 35 | . 10 19 6 Thermal 91 | 6 17 45 23 Explosive 15 | . 9 2 4 Electromagnetic 43 | . . 43 . Robot Hit Streak 13 | 4 10 13 8 Robot Miss Streak 3 | 1 3 2 2 Penetration Max . | . . . . Secondary Targets 1 | . . 1 . Max Gunslinging Chain 1 | . . 1 . Shots Hit Robots 134 | 4 18 75 37 Core Hits 102 | 2 28 46 26 Critical Kills . | . . . . Critical Parts Destroyed 4 | . . . 4 Critical Strikes 9 | 1 . 2 6 Burn 5 | 1 . 2 2 Smash 4 | . . . 4 Melee Attacks 15 | . . . 15 Impact 12 | . . . 12 Slashing . | . . . . Piercing . | . . . . Sneak Attacks 2 | . . . 2 Combat Hostiles . | . . . . Follow-up Attacks . | . . . . Damage Inflicted 5232 | 52 865 2787 1528 Guns 1499 | 52 164 833 450 Cannons 458 | . 17 406 35 Explosions 2604 | . 684 1523 397 Melee 610 | . . . 610 Ramming 61 | . . 25 36 Kinetic 271 | . 57 104 110 Thermal 1388 | 52 124 872 340 Explosive 2317 | . 684 1236 397 Electromagnetic 550 | . . 550 . Impact 645 | . . . 645 Slashing . | . . . . Piercing . | . . . . Highest Corruption 7 | . . . 7 Average Corruption 6 | . . . 6 Corruption Purged . | . . . . Corruption Blocked . | . . . . Effects 4 | . . . 4 Matter Fused 1 | . . . 1 Energy Discharges 1 | . . . 1 Data Loss (minor) 2 | . . . 2 Overload Shots . | . . . . Overflow Damage 389 | . 17 154 218 Projectiles 14 | . . 14 . Explosions 157 | . 17 140 . Melee 218 | . . . 218 Knockbacks 4 | . . 1 3 Impact 3 | . . . 3 Kinetic 1 | . . 1 . Secondary . | . . . . Self-Inflicted Damage 189 | . . 112 77 Shots 6 | . . 3 3 Rammed 13 | . . 5 8 Targets Rammed 22 | . . 7 15 Kicked 9 | . . 2 7 Crushed . | . . . . Highest Temperature 386 | 129 125 351 386 Average Temperature 105 | 70 41 112 140 Received Heat Transfer 1167 | 12 48 234 873 Effects 4 | . . 1 3 Shutdowns 2 | . . 1 1 Short Circuit 1 | . . . 1 Damage (minor) 1 | . . . 1 Siege Activations . | . . . . Martial Activations . | . . . . Shielding Activations . | . . . . Robots Disrupted . | . . . . Combat Hostiles . | . . . . Robots Corrupted 3 | . . . 3 Combat Hostiles 1 | . . . 1 Parts Fried 6 | . . 3 3 Impact Corruptions 8 | . . . 8 Robots Melted . | . . . . Combat Hostiles . | . . . . Parts Melted 4 | . . 4 . Heat Transferred 3075 | 222 370 1706 777 Parts Sabotaged . | . . . . Parts Stolen . | . . . . Parts Stripped . | . . . . Power Chain Reactions 2 | . . 2 . Alert | -11 -10 -9 -8 ------- Run | Yrd Mat Mat Mat Maximum Alert Level 2 | . 1 2 1 Low Security (%) 47 | 100 64 28 51 Level 1 27 | . 35 14 48 Level 2 24 | . . 56 . Level 3 . | . . . . Level 4 . | . . . . Level 5 . | . . . . High Security . | . . . . Max Security . | . . . . Peak Influence 514 | 20 266 514 318 Initial 170 | . . 81 170 Average 219 | 2 127 328 179 Influence Increases 1826 | 20 456 933 417 Destroy 0b10 Robot/C 1100 | 20 300 520 260 Destroy 0b10 Robot/NC 110 | . 20 70 20 Destroy Leader 278 | . 56 136 86 Successful Hack 51 | . 31 20 . Disable Machine 108 | . . 90 18 Destroy Structure 104 | . 49 37 18 Lose Combat Pursuer 75 | . . 60 15 Influence Decreases 1799 | 20 230 685 864 Entered New Map 449 | . . 145 304 Time Decay 1050 | 20 220 500 310 Lost Part 150 | . 10 40 100 Purge Threat 150 | . . . 150 Squads Dispatched 8 | . 2 3 3 Investigation 7 | . 2 2 3 Extermination . | . . . . Reinforcement 1 | . . 1 . Assault . | . . . . Garrison . | . . . . Intercept . | . . . . Searches Triggered . | . . . . Construction Impeded . | . . . . Haulers Reinforced . | . . . . Active Scanning Responses . | . . . . Cargo Convoy Interrupts . | . . . . Stealth | -11 -10 -9 -8 --------- Run | Yrd Mat Mat Mat Distress Signals 8 | . 3 2 3 Communications Jammed . | . . . . Distress Signals . | . . . . Times Spotted 76 | 1 19 33 23 Peak Tracking Total 15 | 1 7 5 15 Tactical Retreats 3 | . . 2 1 Traps | -11 -10 -9 -8 ------- Run | Yrd Mat Mat Mat Traps Triggered 6 | . 4 . 2 Indirectly . | . . . . Trap Hack Attempts . | . . . . Triggered . | . . . . Disarmed . | . . . . Reprogrammed . | . . . . Reused . | . . . . Traps Extracted . | . . . . Installed . | . . . . Triggered . | . . . . Machines | -11 -10 -9 -8 ---------- Run | Yrd Mat Mat Mat Machines Disabled 12 | . . 10 2 Max in Single Turn 5 | . . 5 1 Machines Repaired . | . . . . Machines Dismantled . | . . . . Machines Sabotaged . | . . . . Overloaded Fab Kills . | . . . . Hacking | -11 -10 -9 -8 --------- Run | Yrd Mat Mat Mat Machines Accessed 15 | . 6 6 3 Terminals 11 | . 5 3 3 Fabricators . | . . . . Repair Stations 1 | . . 1 . Recycling Units 2 | . 1 1 . Scanalyzers 1 | . . 1 . Garrison Access . | . . . . Total Hacks 49 | . 16 20 13 Successful 37 | . 13 16 8 Failed 12 | . 3 4 5 Catastrophic 4 | . . 2 2 Database Lockouts . | . . . . Manual 3 | . . 3 . Terminals 35 | . 13 9 13 Fabricators . | . . . . Repair Stations 4 | . . 4 . Recycling Units 8 | . 3 5 . Scanalyzers 2 | . . 2 . Garrison Access . | . . . . Terminal Hacks 25 | . 11 6 8 Record 13 | . 4 3 6 Emergency Access Points 1 | . 1 . . Terminal Index 1 | . . 1 . Unreport Threat 1 | . . . 1 Locate Traps 1 | . 1 . . Dispatch Records 3 | . 2 1 . Transport Status 1 | . 1 . . Reinforcement Status 1 | . . . 1 Recall Reinforcements 1 | . 1 . . Hauler Manifests 1 | . 1 . . Zone Layout 1 | . . 1 . Fabricator Hacks . | . . . . Repair Station Hacks 3 | . . 3 . Scan Component 1 | . . 1 . Repair 1 | . . 1 . Refit 1 | . . 1 . Recycling Unit Hacks 7 | . 2 5 . Recycle Component 2 | . 1 1 . Process 1 | . . 1 . Report Inventory 2 | . 1 1 . Retrieve Matter 1 | . . 1 . Retrieve Components 1 | . . 1 . Scanalyzer 2 | . . 2 . Insert Component 1 | . . 1 . Analyze 1 | . . 1 . Garrison Access Hacks . | . . . . Unauthorized Hacks . | . . . . Terminals . | . . . . Fabricators . | . . . . Repair Stations . | . . . . Recycling Units . | . . . . Scanalyzers . | . . . . Garrison Access . | . . . . Data Cores Recovered . | . . . . Used . | . . . . Hacking Detections 12 | . 6 3 3 Full Trace Events 9 | . 3 3 3 Feedback Events 1 | . . . 1 Corruption 1 | . . . 1 Feedback Blocked . | . . . . Robot Schematics Acquired . | . . . . Robots Built . | . . . . Authchips . | . . . . Time . | . . . . Total Robot Build Rating . | . . . . Part Schematics Acquired 1 | . . 1 . Parts Built . | . . . . Authchips . | . . . . Time . | . . . . Total Part Build Rating . | . . . . Parts Repaired 1 | . . 1 . Time 26 | . . 26 . Parts Recycled 2 | . 1 1 . Recycled Matter 27 | . . 27 . Retrieved Matter 27 | . . 27 . Retrieved Components 1 | . . 1 . Parts Scanalyzed 1 | . . 1 . Part Schematics Acquired 1 | . . 1 . Parts Damaged . | . . . . Bothacking | -11 -10 -9 -8 ------------ Run | Yrd Mat Mat Mat Used RIF Installer . | . . . . Robots Hacked 1 | . . . 1 Non-combat . | . . . . Combat 1 | . . . 1 Robot Hacks Applied 1 | . . . 1 parse_system 1 | . . . 1 Relay Couplers Released . | . . . . Fabnet Peak Effective % . | . . . . Robots Rewired . | . . . . Allies Hacked . | . . . . Hacks Repelled . | . . . . Allies | -11 -10 -9 -8 -------- Run | Yrd Mat Mat Mat Total Allies . | . . . . Largest Group . | . . . . Highest-Rated Group . | . . . . Highest-Rated Ally . | . . . . Total Orders . | . . . . Ally Attacks . | . . . . Total Damage . | . . . . Kills . | . . . . Allies Corrupted . | . . . . Allies Melted . | . . . . Intel | -11 -10 -9 -8 ------- Run | Yrd Mat Mat Mat Active Infowar (turns) 323 | . 146 177 . Seismic 323 | . 146 177 . Robot Analysis Total . | . . . . Derelict Logs Recovered . | . . . . Drone Launches . | . . . . Drone Recoveries . | . . . . Exploration | -11 -10 -9 -8 ------------- Run | Yrd Mat Mat Mat Turns Passed 2353 | 154 553 1010 636 Spaces Moved 1520 | 116 567 568 269 Core 119 | 24 . . 95 Treads 52 | . . 52 . Legs 685 | 92 186 243 164 Wheels . | . . . . Hover . | . . . . Flight 664 | . 381 273 10 Fastest Speed 34 | 50 37 34 50 Average Speed 112 | 105 75 117 180 Slowest Speed 350 | 120 197 160 350 Overloaded Moves . | . . . . Propulsion Burnouts . | . . . . Robots Hopped 2 | . 2 . . Potential Cave-ins . | . . . . Cave-ins Triggered . | . . . . Exploration Rate (%) 40 | 7 79 54 23 Regions Visited 3 Branch Regions . Pre-discovered Areas . | . . . . Known Exits Taken . | . . . . Unknown Exits Taken 3 | 1 1 1 . Scrap Searched . | . . . . Spaces Dug . | . . . . Terrain Destroyed 102 | . 49 33 20 Melee . | . . . . Projectile . | . . . . AOE 102 | . 49 33 20 Terrain Rammed . | . . . . Walls Destroyed . | . . . . Machines Disabled . | . . . . Actions | -11 -10 -9 -8 --------- Run | Yrd Mat Mat Mat Total 1970 | 143 662 803 362 Wait 103 | 3 11 84 5 Move 1513 | 115 562 567 269 Hop 2 | . 2 . . Pick Up 75 | 12 22 31 10 Fast Attach 6 | . . . 6 Attach 41 | 6 15 9 11 Detach 6 | . 4 2 . Swap 27 | 2 7 16 2 Drop 47 | 2 17 21 7 Fire 113 | 3 22 66 22 Melee 15 | . . . 15 Ram 12 | . . 4 8 Kick 9 | . . 2 7 Crush 1 | . . 1 . Escape Stasis . | . . . . Rewire . | . . . . Trap . | . . . . Miscellaneous . | . . . . Route ------- -11/Scrapyard -10/Materials (discovered 4 exits: *Mat x3 / [*Min]) -9/Materials (discovered 5 exits: *Mat x2 / [*Min x2] / [Sto]) -8/Materials History --------- Turn | Location | Event 4 | -11/Scrapyard | Met Revision 17 94 | -11/Scrapyard | Discovered new exit (range 8) 155 | -11/Scrapyard | Entered Materials 335 | -10/Materials | Build established: Mutant 361 | -10/Materials | Discovered new exit (range 15) 459 | -10/Materials | Discovered new exit (range 15) 486 | -10/Materials | Discovered new exit (range 10) 543 | -10/Materials | Discovered new exit (range 15) 708 | -10/Materials | Entered another Materials area 708 | -9/Materials | Evolved 2 slots: Power x1, Propulsion x1 800 | -9/Materials | Discovered new exit (range 13) 865 | -9/Materials | Discovered new exit (range 16) 872 | -9/Materials | Repaired Flight Unit? 956 | -9/Materials | Discovered new exit (range 11) 1257 | -9/Materials | Lost 4 parts (1p1n2u) 1375 | -9/Materials | Discovered new exit (range 16) 1646 | -9/Materials | Discovered new exit (range 16) 1699 | -9/Materials | Build established: Scavenger-Mutant 1718 | -9/Materials | Entered another Materials area 1718 | -8/Materials | Evolved 2 slots: Utility x1, Weapon x1 1914 | -8/Materials | Lost 3 parts (2p1w) 1979 | -8/Materials | Lost 3 parts (2n1w) 2093 | -8/Materials | Core integrity fell below 50% 2137 | -8/Materials | Build established: Mutant 2331 | -8/Materials | Core integrity fell below 20% 2354 | -8/Materials | Destroyed by G-47 Trooper with Particle Gun Last Messages --------------- Lgt. Armor Plating destroyed. K-01 Serf collects debris. Only a single melee weapon may be active at a time, Great Maul automatically deactivated. (Secondary inactive melee weapons have a chance to conduct follow-up attacks, see the manual.) Jacked G-47 Trooper... Right-click on available options for more info. Keyboard players can use Shift-a~z. >>parse_system Reading system data... System corrupted: Component data lost. Jacked G-47 Trooper... Command string: disable No effect. Critical hit (Burn: +37). Jacked G-47 Trooper... G-47 Trooper knocked back. [Achievement: First Step to Greatness] Map ----- +----------------------------------------------------+ | %%+% #?# #??????????????????????? | | #### #?# """ #??????????????????????? | | ???# #?# """ #??????????????????????? | | ########+####### """ +??????????????????????? | | = % #??????????????????????? | | % [= #??????????????????????? | | * =%= #??????????????????????? | | #/######+############# [ #????????????????????? | | # [ #?????? #????????????????????? | | """ #[%[" ! #?????" ! #???????????????????? | | """ # !! #????"" % # #???????????????????? | | """ # #?? """ # % ??????????????????? | | # """ #?? # ????????????????? | | "" """ #?? """ # """" #???????????????? | | """ =% """ #?? """ # """" #???????????????? | | """ """ #???""" # %""" !#???????????????? | | #???? !# ????????????????????? | | ##############????### # ????????????????????? | | ????????????????????### ???????????????????? | | ??????????????????????#% ???????????????????? | | #####?????????????????# % ?????????????????????? | | #?????????????????# #??????????????????????? | | #?????????????????# #??????????????????????? | | #?????????#########g g#??????????????????????? | | #?????????# # #??????????????????????? | | #?????????#"" ] # @#??????????????????????? | | ######????#"T #r #??????????????????????? | | ##+## ##+###"" # #??????????????????????? | | # # #??????????????????????? | | T + """ # #??????????????????????? | | ##### ###### """ # #??????????????????????? | | ?#####+####???# """ #!! #??????????????????????? | | ?#! #???# ![ #%* #??????????????????????? | | ?# ]#???# [%%+=% #??????????????????????? | | ?# """ #???# [=# % #??????????????????????? | | ?# """"" #???# ####### #??????????????????????? | | ?# """"" ############# #??????????????????????? | | ?# """"" + [ [ #??????????????????????? | | ?# """ ############### #??????????????????????? | | ?# #?????????????# #??????????????????????? | | ?# #?????????????# +??????????????????????? | | ?##########?????????????# #??????????????????????? | | ????????????????????????? #??????????????????????? | | ????????????????????????? #??????????????????????? | | ?????????????????????????##??????????????????????? | | ?????????????????????????????????????????????????? | | ?????????????????????????????????????????????????? | | ?????????????????????????????????????????????????? | | ?????????????????????????????????????????????????? | | ?????????????????????????????????????????????????? | +----------------------------------------------------+ Best States ------------- Heat Dissipation 41 Coolant Potential 50 Energy Generation 19 Energy Capacity 275 Matter Stores 300 Matter Capacity 300 Sight Range 16 Terrain Scan Density 85 Armor Coverage 150 Resistance: KI 20 Resistance: TH 20 Resistance: EX 20 Resistance: EM 20 Resistance: I 20 Resistance: S 20 Resistance: P 20 Core Shielding 20 Evasion (%) 63 Recoil Reduction 2 Offensive Hacking 10 Item Schematics ----------------- Datajack | -9/Materials | Scanalyzed Robot Schematics ------------------ None Fabricated ------------ Nothing Repaired ---------- Flight Unit | 85% | -9/Materials Alien Tech Used ----------------- None Achievements -------------- Crack Shot Everything Is Under Control First Step to Greatness Let's See Who's Tougher Librarian Loot Pinata Novice Programmer One Hack Too Far Part-time Mechanic Power Corrupts Risk Taker Shopping List Uninvited Guest Use The Force Challenges ------------ None Game ------ Seed ComponentTransportPropulsion Manual? 0 Play Time 00:53:56 Cumulative 0.8 hours Start 2025.09.12 @ 07:12:40 End 2025.09.19 @ 07:56:27 Sessions 5 Manual Loads 0 Difficulty Adventurer Special Mode None Game No. 1 Rogue 0 Adventurer 1 Explorer 0 Win Type - Total 0 Types 0/0/0/0/0/0/0/0/0/0 Lore% 0 Gallery% 3 Achievement% 5 Wizard Run 0 Options --------- Layout 2 ASCII 0 Keyboard 0 Movement Numpad Keybinds 0 Fullscreen 1 Font 32/SmallcapsGlow Map View 50x44 Zoom Use 1% Tactical HUD 0 Map Filters NONE Filters NONE Steam 1 RUN: afb149ec-cee4-436d-81d0-df3e849d9442